bitfinex-derivatives/quotes_ETHF0:USTF0_20250807
["timestamp","ask_amount","ask_price","bid_price","bid_amount"]
[1754595813775,0.7612,3849.1,3849.0,0.53896]
[1754595813973,0.7612,3849.1,3849.0,19.10496]
[1754595814171,1.1312,3849.1,3849.0,19.10496]
[1754595814372,1.9211,3849.1,3849.0,19.10496]
[1754595815170,1.9211,3849.1,3849.0,18.1972]
[1754595816176,1.9211,3849.1,3849.0,18.2167]
[1754595816473,1.9211,3849.1,3849.0,18.5855]
[1754595816674,1.9211,3849.1,3849.0,18.2167]
[1754595817077,1.9211,3849.1,3849.0,18.5855]
[1754595817276,1.9211,3849.1,3849.0,18.1972]
[1754595817471,1.9211,3849.1,3849.0,17.956]
[1754595817677,5.1289,3849.1,3849.0,17.956]
[1754595818381,45.9289,3849.1,3849.0,18.2273]
[1754595818681,45.9289,3849.1,3849.0,17.956]
[1754595820273,45.9289,3849.1,3849.0,18.1972]
[1754595820680,44.0078,3849.1,3849.0,18.5739]
[1754595820880,45.1677,3849.1,3849.0,18.1972]
[1754595821579,2.44061,3848.7,3848.6,0.2412]
[1754595821784,1.9211,3848.7,3848.6,18.2147]
[1754595821980,1.9211,3848.7,3848.6,18.5835]
[1754595822177,1.9211,3848.7,3848.6,0.6295]
[1754595822371,1.9211,3848.7,3848.6,18.5835]
[1754595822677,1.9211,3848.7,3848.6,18.2147]
[1754595823181,1.9211,3848.7,3848.6,18.2159]
[1754595823882,1.9211,3848.7,3848.6,17.954]
[1754595824090,1.9211,3848.7,3848.6,18.179]
[1754595824286,1.9211,3848.7,3848.6,0.225]
[1754595824488,1.9211,3848.7,3848.6,0.2262]
[1754595825578,0.5178,3848.6,3848.0,3.209]
[1754595825894,5.61018,3848.3,3848.2,0.225]
[1754595826078,2.40238,3848.3,3848.2,0.225]
[1754595826283,43.20238,3848.3,3848.2,0.225]
[1754595826483,43.20238,3848.3,3848.2,0.2262]
[1754595826984,40.8,3848.3,3848.2,0.5768]
[1754595827188,3.2078,3849.1,3848.2,0.5768]
[1754595827189,2.40227,3849.0,3848.9,0.225]
[1754595827392,2.40227,3849.0,3848.9,0.2262]
[1754595827584,43.20227,3849.0,3848.9,0.2262]
[1754595827786,42.77477,3849.0,3848.9,0.2262]
[1754595827979,0.51951,3848.7,3848.6,17.9542]
[1754595828290,1.63021,3848.7,3848.6,18.5298]
[1754595828589,43.20231,3848.7,3848.6,18.1811]
[1754595829189,42.77481,3848.7,3848.6,18.5298]
[1754595829388,42.0186,3848.7,3848.6,18.5298]
[1754595829588,41.4966,3848.7,3848.6,18.5298]
[1754595829789,45.1319,3848.7,3848.6,17.953]
[1754595831089,1.8828,3848.4,3848.3,0.74456]
[1754595831291,2.40235,3848.4,3848.3,0.225]
[1754595831890,2.40235,3848.4,3848.2,17.953]
[1754595832090,1.27825,3848.4,3848.2,17.953]
[1754595832398,1.8828,3848.3,3848.2,18.178]
[1754595832594,0.8624,3848.3,3848.2,18.69948]
[1754595832791,1.8828,3848.3,3848.2,19.04938]
[1754595833295,0.874,3848.6,3848.5,1.09634]
[1754595833496,1.5308,3848.9,3848.8,0.5768]
[1754595833893,42.3308,3848.9,3848.8,0.2281]
[1754595834098,42.6828,3848.9,3848.8,0.2281]
[1754595835196,42.6828,3848.9,3848.8,0.5768]
[1754595836497,40.8,3848.9,3848.8,0.5768]
[1754595836794,41.9241,3848.9,3848.8,0.2281]
[1754595836993,41.9241,3848.9,3848.5,17.953]
[1754595836994,0.7587,3848.6,3848.5,19.04814]
[1754595837198,1.8828,3848.6,3848.5,0.74764]
[1754595837396,1.8828,3848.6,3848.2,0.3487]
[1754595837595,0.7587,3848.3,3848.2,0.2262]
[1754595837900,0.7587,3848.3,3848.2,18.70067]
[1754595838100,44.0078,3848.9,3848.3,0.0012]
[1754595838401,2.4023,3848.8,3848.7,0.225]
[1754595838590,1.8828,3848.8,3848.7,0.2262]
[1754595839100,1.8828,3848.8,3848.7,0.2281]
[1754595840100,0.7587,3848.5,3848.4,1.09324]
[1754595840304,2.40234,3848.5,3848.3,18.47256]
[1754595840605,2.40234,3848.5,3848.4,0.2281]
[1754595840805,2.40234,3848.5,3848.4,0.5768]
[1754595841106,1.8828,3848.5,3848.4,0.5768]
[1754595841702,4.07932,3848.7,3848.6,0.2281]
[1754595841908,3.5598,3848.7,3848.6,0.5768]
[1754595843210,4.6631,3848.7,3848.6,0.5768]
[1754595843410,5.0906,3848.7,3848.6,0.5768]
[1754595843613,4.6631,3848.7,3848.6,0.5768]
[1754595844211,0.874,3848.7,3848.6,0.5768]
[1754595844409,0.874,3848.7,3848.5,3.72734]
[1754595844410,41.152,3848.9,3848.8,0.0019]
[1754595844714,41.4966,3848.9,3848.8,0.5768]
[1754595845610,40.8,3848.9,3848.8,18.5288]
[1754595845916,41.9241,3848.9,3848.8,18.5288]
[1754595846109,41.4966,3848.9,3848.8,18.5288]
[1754595846709,41.152,3848.9,3848.8,18.5288]
[1754595846909,40.8,3848.9,3848.8,18.5288]
[1754595847414,41.4966,3848.9,3848.8,18.5288]
[1754595847610,40.8,3848.9,3848.8,18.5288]
[1754595848412,41.152,3848.9,3848.8,18.5288]
[1754595848612,40.8,3848.9,3848.8,18.5288]
[1754595850220,40.8,3848.9,3848.8,18.1801]
[1754595850407,0.7721,3849.9,3848.8,17.952]
[1754595850612,0.59130523,3849.8,3849.7,0.5756]
[1754595850815,0.6966,3849.8,3849.7,0.5768]
[1754595851007,1.8828,3849.8,3849.7,0.5768]
[1754595851207,17.95,3850.4,3849.7,0.5768]
[1754595851208,0.24670523,3849.9,3849.8,0.86806]
[1754595851408,1.8828,3849.9,3849.8,0.225]
[1754595851927,42.6828,3849.9,3849.8,0.225]
[1754595852108,40.8,3849.9,3849.8,0.5768]
[1754595852311,41.04343978,3849.9,3849.8,0.5768]
[1754595852511,42.16753978,3849.9,3849.8,0.5768]
[1754595852712,42.16753978,3849.9,3849.7,0.51937]
[1754595852912,1.8828,3849.8,3849.7,1.09617]
[1754595853113,0.352,3849.8,3849.7,19.04617]
[1754595853616,0.8635,3849.8,3849.7,19.04617]
[1754595853817,1.2252,3849.8,3849.7,19.04617]
[1754595854020,40.8,3849.9,3849.7,19.04617]
[1754595854216,40.8,3849.9,3849.8,0.5997]
[1754595855223,0.4543,3850.5,3849.8,0.5997]
[1754595855224,1.4771,3850.5,3850.4,0.2392]
[1754595855523,1.9314,3850.5,3850.4,19.06698]
[1754595855827,42.7314,3850.5,3850.4,19.06698]
[1754595856021,1.9314,3850.5,3850.4,21.7555]
[1754595856317,1.9314,3851.0,3850.9,1.11761]
[1754595856523,42.7314,3851.0,3850.9,19.06561]
[1754595856821,42.7314,3851.0,3850.9,19.06691]
[1754595857515,0.2447,3849.8,3849.7,0.5984]
[1754595857720,2.45076,3849.8,3849.7,18.1832]
[1754595857919,2.45076,3849.8,3849.6,3.2078]
[1754595857920,1.9314,3849.7,3849.6,0.51938]
[1754595858120,1.9314,3849.7,3849.6,18.70258]
[1754595858317,1.9314,3849.7,3849.6,0.75658]
[1754595858516,1.9314,3849.6,3849.4,0.51941]
[1754595858821,1.9314,3849.6,3849.5,17.946]
[1754595859224,42.7314,3849.6,3849.5,17.946]
[1754595859421,0.3617,3849.1,3848.7,3.2078]
[1754595859621,44.0078,3849.6,3848.7,4.32571]
[1754595859622,1.5722,3848.8,3848.7,4.32571]
[1754595859819,1.9314,3848.8,3848.7,22.27171]
[1754595860220,1.9314,3848.8,3848.7,22.27301]
[1754595860420,1.9314,3848.8,3848.7,4.32701]
[1754595860724,1.9314,3848.8,3848.7,22.27201]
[1754595861120,1.9314,3848.8,3848.7,4.32701]
[1754595861318,1.9314,3848.8,3848.7,22.27201]
[1754595861714,1.9314,3848.8,3848.7,21.1528]
[1754595861920,1.9314,3848.8,3848.7,17.945]
[1754595862322,1.9314,3848.8,3848.7,18.46451]
[1754595862619,42.7314,3848.8,3848.7,18.70171]
[1754595864017,42.7314,3848.8,3848.7,18.46451]
[1754595864428,42.7314,3848.8,3848.7,18.70171]
[1754595865526,42.7314,3848.8,3848.7,18.70501]
[1754595866524,40.8,3848.8,3848.7,18.70171]
[1754595866727,40.8,3848.8,3848.7,19.06421]
[1754595867428,41.1592,3848.8,3848.7,19.06421]
[1754595867622,0.3617,3849.0,3848.9,0.51948]
[1754595867830,1.9314,3849.6,3849.5,0.5997]
[1754595868026,42.7314,3849.6,3849.5,0.2372]
[1754595868232,43.2508,3849.6,3849.4,18.46541]
[1754595868533,1.6446,3849.5,3849.4,17.946]
[1754595868730,1.4199,3849.5,3849.0,0.51946]
[1754595868931,1.9314,3849.1,3849.0,18.46546]
[1754595869125,42.4867,3849.1,3849.0,19.06516]
[1754595869931,42.0324,3849.1,3849.0,19.06516]
[1754595870332,41.6707,3849.1,3849.0,19.06516]
[1754595870532,42.4867,3849.1,3849.0,19.06516]
[1754595870834,42.4867,3849.1,3849.0,18.1832]
[1754595871922,42.4867,3849.1,3849.0,17.946]
[1754595872727,1.9314,3848.6,3848.5,3.96784]
[1754595873022,1.9314,3848.6,3848.5,22.27304]
[1754595874434,1.9314,3848.6,3848.5,18.46554]
[1754595874634,1.9314,3848.6,3848.5,18.1832]
[1754595875027,1.9314,3848.6,3848.5,18.1845]
[1754595876731,1.9314,3848.6,3848.5,21.3923]
[1754595877838,2.45094,3848.5,3848.4,0.51955]
[1754595878031,1.9314,3848.5,3848.4,0.51955]
[1754595879339,1.9314,3848.5,3848.4,0.75675]
[1754595882234,1.9314,3848.5,3848.4,0.75805]
[1754595882544,1.9314,3848.5,3848.4,1.11925]
[1754595882934,0.6064,3848.5,3848.4,0.75675]
[1754595883135,40.8,3849.1,3848.7,1.29878]
[1754595883341,40.8,3849.1,3849.0,1.11207]
[1754595883944,1.0989,3849.3,3849.2,0.51945]
[1754595884150,1.862,3849.3,3849.2,19.05805]
[1754595884439,42.662,3849.3,3849.2,19.05805]
[1754595885449,4.7379,3849.8,3849.7,1.11198]
[1754595885638,0.3389,3850.6,3849.7,4.1078]
[1754595885940,1.4308,3849.8,3849.7,0.9]
[1754595886142,3.2078,3850.4,3849.6,3.2078]
[1754595886339,0.76,3850.0,3849.9,0.7488]
[1754595886538,0.3014,3850.0,3849.9,1.8776]
[1754595886740,1.2287,3850.8,3850.7,0.4594]
[1754595887047,1.5301,3850.8,3850.7,0.8161]
[1754595887249,42.3301,3850.8,3850.7,0.8161]
[1754595887541,41.3418,3850.8,3850.7,1.1055]
[1754595887750,41.3418,3850.8,3850.7,20.1836]
[1754595887751,40.8,3850.8,3850.7,20.1836]
[1754595888046,0.76,3851.6,3851.3,0.51916]
[1754595888344,1.0989,3851.5,3851.4,1.03565]
[1754595888647,42.3301,3851.5,3851.4,2.39675]
[1754595889036,40.8,3851.5,3851.4,2.39675]
[1754595889245,41.5701,3851.5,3851.4,2.39675]
[1754595889846,41.5701,3851.5,3851.4,1.46405]
[1754595890045,40.8,3851.5,3850.8,3.2078]
[1754595890248,0.7701,3851.3,3851.2,0.87587]
[1754595890440,0.7701,3851.3,3851.2,1.64797]
[1754595890847,0.7701,3851.3,3851.2,1.1288]
[1754595891047,0.7701,3851.3,3851.2,0.7126]
[1754595891643,0.7701,3851.3,3851.0,0.5192]
[1754595891644,0.7701,3851.1,3851.0,0.8759]
[1754595892455,1.5301,3851.1,3851.0,1.9806]
[1754595892655,0.973,3851.1,3851.0,2.3968]
[1754595892955,1.5301,3851.1,3851.0,2.3968]
[1754595893549,41.2312,3851.5,3851.4,1.8776]
[1754595893943,41.5701,3851.5,3851.4,1.4614]
[1754595894149,41.5701,3851.5,3851.4,1.8776]
[1754595894649,41.2312,3851.5,3851.4,1.8776]
[1754595895447,0.7701,3851.2,3851.1,0.87589]
[1754595895671,1.5301,3851.2,3851.1,1.98059]
[1754595895852,1.5301,3851.2,3851.1,2.39679]
[1754595896155,0.973,3851.2,3851.1,2.39679]
[1754595896356,1.5301,3851.2,3851.1,2.39679]
[1754595896854,40.8,3851.5,3851.4,1.8776]
[1754595899646,3.2078,3851.9,3851.7,0.51911]
[1754595899850,3.7496,3851.9,3851.8,1.8776]
[1754595900051,45.199,3851.9,3851.8,1.8776]
[1754595900351,1.0989,3851.7,3851.6,1.8776]
[1754595901054,44.439,3851.9,3851.8,1.4614]
[1754595901257,41.2312,3851.9,3851.8,1.8776]
[1754595902062,41.5701,3851.9,3851.8,1.8776]
[1754595902751,40.8,3851.9,3851.8,1.8776]
[1754595902958,41.2312,3851.9,3851.8,1.8776]
[1754595903460,1.29747,3852.7,3851.8,1.8776]
[1754595903461,3.2078,3852.8,3852.7,0.51898]
[1754595903656,1.0,3853.0,3852.9,2.39655]
[1754595904158,3.2078,3853.6,3853.4,0.51888]
[1754595904353,0.4312,3853.5,3853.4,1.35988]
[1754595904661,0.4312,3853.8,3853.7,1.35984]
[1754595904957,3.9779,3854.4,3854.3,0.7126]
[1754595905149,3.2078,3854.8,3854.7,0.4843]
[1754595905350,3.2078,3855.2,3855.1,1.00295]
[1754595905549,3.2078,3855.8,3855.7,0.51857]
[1754595905753,1.0,3856.0,3855.9,1.35955]
[1754595906152,0.6708,3856.9,3855.9,1.35955]
[1754595906153,3.2078,3857.0,3856.9,0.51841]
[1754595906355,0.3389,3856.7,3855.6,3.2078]
[1754595906561,1.102,3856.0,3855.4,0.5186]
[1754595906750,0.3319,3855.6,3855.1,18.315]
[1754595906952,0.3319,3855.3,3854.8,0.51869]
[1754595907154,0.3389,3855.6,3854.6,3.2078]
[1754595907459,0.4312,3857.2,3854.5,0.51874]
[1754595907460,0.6708,3854.9,3854.5,0.51874]
[1754595907656,3.72646,3855.1,3854.5,0.51874]
[1754595907856,0.6708,3854.7,3854.5,0.51874]
[1754595908060,0.3319,3854.6,3854.5,0.51874]
[1754595908257,0.3319,3855.1,3854.7,0.5187]
[1754595908465,0.3389,3855.5,3855.0,3.2078]
[1754595908657,0.3319,3855.3,3855.1,3.72645]
[1754595908962,3.2078,3856.5,3856.2,0.5185]
[1754595909151,0.3319,3856.4,3856.2,0.5185]
[1754595909356,0.6708,3856.7,3856.6,0.51845]
[1754595909661,0.3319,3857.0,3856.7,0.51844]
[1754595909866,0.4312,3856.9,3856.6,0.51845]
[1754595910064,0.3319,3856.7,3856.6,0.51845]
[1754595910361,0.3389,3857.2,3857.1,0.51839]
[1754595910563,40.8,3857.3,3857.1,0.51839]
[1754595910760,0.3389,3857.7,3857.6,0.51832]
[1754595910960,3.2078,3858.3,3858.0,0.51826]
[1754595911167,3.2078,3858.3,3857.2,0.125]
[1754595911168,3.2078,3859.1,3858.8,0.51815]
[1754595911465,40.8,3859.4,3858.9,3.2078]
[1754595912360,40.8,3859.4,3857.4,1.29585]
[1754595912361,1.102,3858.9,3857.5,3.2078]
[1754595912556,0.7701,3858.5,3857.6,3.2078]
[1754595912761,0.3389,3858.2,3856.8,3.2078]
[1754595912961,1.39476,3858.0,3857.4,0.51833]
[1754595913163,0.4543,3857.8,3857.7,0.5183]
[1754595913358,0.4543,3857.8,3857.2,3.2078]
[1754595913664,0.8033,3857.7,3856.9,18.472]
[1754595913969,0.3811,3857.6,3857.0,0.5184]
[1754595914557,0.51827,3858.0,3856.9,18.472]
[1754595914558,1.2576,3858.0,3856.9,18.472]
[1754595914760,0.3811,3857.8,3857.7,0.51829]
[1754595914962,0.3811,3857.8,3857.7,0.55139]
[1754595915264,0.3811,3857.8,3857.7,0.0331]
[1754595915570,1.2576,3857.7,3856.4,3.2078]
[1754595915762,4.50356,3857.8,3855.3,37.343]
[1754595915763,0.4543,3856.1,3855.5,3.2078]
[1754595916063,40.8,3856.1,3855.6,0.51859]
[1754595916265,40.8,3856.1,3855.5,3.2078]
[1754595916266,40.8,3856.1,3855.8,0.51855]
[1754595916471,0.8033,3856.0,3855.9,3.2078]
[1754595916660,40.8,3856.1,3856.0,0.51853]
[1754595916859,0.4543,3857.5,3856.4,1.2962]
[1754595917061,3.2078,3858.3,3857.1,0.51838]
[1754595917369,3.2078,3858.3,3856.4,1.3292]
[1754595917370,0.51835,3857.4,3856.8,0.51842]
[1754595917566,0.8033,3857.1,3857.0,3.72619]
[1754595917863,0.8033,3857.1,3856.8,0.51842]
[1754595918166,3.2078,3857.9,3856.8,0.51842]
[1754595918167,0.3811,3856.9,3856.8,0.51842]
[1754595918366,0.3811,3856.9,3856.8,0.55152]
[1754595918559,0.8033,3856.9,3856.8,0.51842]
[1754595918758,0.51843,3856.8,3856.5,18.487]
[1754595918963,3.2078,3857.1,3856.6,0.51845]
[1754595919165,0.3811,3856.9,3856.5,18.487]
[1754595919363,40.8,3857.5,3857.4,0.51835]
[1754595919566,0.4543,3857.4,3857.2,0.51837]
[1754595919771,0.3811,3857.2,3856.6,3.2374]
[1754595920067,40.8,3857.5,3857.3,0.51835]
[1754595920464,3.2078,3857.8,3857.5,0.51832]
[1754595920664,0.4222,3858.4,3858.1,0.51824]
[1754595920860,0.8033,3858.6,3858.3,0.54782]
[1754595921059,0.4222,3858.9,3858.3,19.03122]
[1754595921377,0.4222,3858.9,3858.8,0.54776]
[1754595921378,0.3811,3858.9,3858.8,0.54776]
[1754595921572,41.1811,3858.9,3858.8,0.54776]
[1754595922168,41.6033,3858.9,3858.8,0.51816]
[1754595922465,40.8,3858.9,3858.8,0.54776]
[1754595922666,41.1811,3858.9,3858.8,0.54776]
[1754595922971,0.3811,3858.8,3858.7,18.503]
[1754595923162,0.3811,3858.9,3858.8,0.51816]
[1754595923560,2.0,3859.0,3858.8,0.54776]
[1754595923762,2.0,3859.0,3858.9,3.2374]
[1754595925498,2.0,3859.0,3858.9,3.267]
[1754595926082,2.3811,3859.0,3858.9,3.2374]
[1754595926274,2.0,3859.0,3858.9,3.2374]
[1754595926475,2.3811,3859.0,3858.9,3.2374]
[1754595926869,2.0,3859.0,3858.9,3.2374]
[1754595927072,2.0,3859.0,3858.9,3.267]
[1754595927271,1.45786,3859.0,3858.9,3.267]
[1754595927471,1.45786,3859.0,3858.9,40.588]
[1754595927867,1.42826,3859.0,3858.9,40.588]
[1754595928270,0.86244,3859.0,3858.9,40.588]
[1754595928470,0.0603,3859.0,3858.9,40.588]
[1754595928665,0.0603,3859.0,3858.9,40.5584]
[1754595928867,0.0603,3859.0,3858.9,58.9978]
[1754595929775,0.4414,3859.0,3858.9,58.9968]
[1754595930478,1.3179,3859.0,3858.9,21.6688]
[1754595931678,0.8636,3859.0,3858.9,21.6688]
[1754595931876,1.3179,3859.0,3858.9,21.6688]
[1754595932071,0.8636,3859.0,3858.9,21.6688]
[1754595932274,0.51799,3860.1,3859.8,0.51801]
[1754595932571,0.51798,3860.2,3859.9,0.518]
[1754595932773,42.0576,3860.0,3859.9,0.518]
[1754595933174,42.0576,3860.0,3859.8,18.97701]
[1754595933478,1.2576,3859.9,3859.8,18.97701]
[1754595934072,1.2576,3860.4,3860.3,0.51796]
[1754595934281,1.2576,3860.4,3860.3,19.02396]
[1754595934468,0.4543,3860.3,3860.2,0.51796]
[1754595934670,1.2576,3860.3,3860.2,0.51796]
[1754595934983,0.8765,3859.9,3859.8,0.51801]
[1754595935278,1.2576,3859.9,3859.8,19.02201]
[1754595936471,0.3811,3861.3,3860.1,0.51798]
[1754595936676,0.64090443,3861.6,3861.5,0.51779]
[1754595936873,0.3811,3861.6,3861.5,22.25159]
[1754595937075,41.1811,3861.6,3861.5,21.7338]
[1754595937284,0.3811,3861.9,3861.6,0.51778]
[1754595937483,1.0,3862.0,3861.7,0.51777]
[1754595937684,1.0,3862.0,3861.7,0.63617]
[1754595937977,0.3811,3861.9,3861.7,0.51777]
[1754595938182,0.3811,3861.8,3861.7,0.51777]
[1754595938384,1.2576,3861.8,3861.7,0.51777]
[1754595938883,1.2576,3861.6,3861.5,22.25159]
[1754595939477,0.3811,3861.6,3861.5,22.25159]
[1754595939681,1.2576,3861.8,3861.7,0.51777]
[1754595939876,0.4222,3861.7,3861.5,3.2078]
[1754595940181,0.51777,3861.7,3861.5,18.512]
[1754595940384,0.8033,3861.4,3861.2,18.516]
[1754595940582,0.8765,3861.3,3861.2,18.516]
[1754595940881,0.3811,3861.4,3860.8,3.2078]
[1754595940882,0.8033,3860.9,3860.8,3.2078]
[1754595941076,1.2576,3860.9,3860.8,21.7228]
[1754595941277,0.3811,3860.9,3860.8,22.24]
[1754595941479,1.2576,3860.9,3860.8,21.7228]
[1754595941789,1.2576,3860.9,3860.8,3.2078]
[1754595941977,1.2576,3860.9,3860.8,21.7248]
[1754595942179,3.72567,3861.0,3860.2,0.3811]
[1754595942483,0.3811,3860.4,3860.3,0.51796]
[1754595942678,41.6354,3860.4,3860.3,0.51796]
[1754595942879,0.8354,3860.3,3860.2,18.555]
[1754595943083,0.8639,3860.3,3860.2,18.555]
[1754595943275,1.3866829,3861.9,3861.7,0.51777]
[1754595943583,1.3866829,3862.8,3861.8,10.78]
[1754595943786,3.2078,3863.0,3861.6,1.29443]
[1754595943787,42.1866829,3862.7,3862.6,0.51764]
[1754595944086,0.432,3863.1,3862.9,0.51761]
[1754595944286,0.8416,3863.6,3863.0,0.7925]
[1754595944486,40.8,3863.9,3863.2,0.7925]
[1754595944786,41.232,3863.9,3863.8,0.7925]
[1754595944980,41.232,3863.9,3863.8,1.2153]
[1754595944981,40.8,3863.9,3863.8,1.2153]
[1754595945176,3.2078,3864.4,3863.8,1.2153]
[1754595945379,1.37909436,3865.1,3865.0,0.51733]
[1754595945582,41.6565,3865.9,3865.0,22.726]
[1754595945775,1.2876,3865.8,3865.6,0.51723]
[1754595945981,40.8,3865.9,3865.7,0.51723]
[1754595946184,40.8,3865.9,3865.7,0.8179]
[1754595946582,1.29262,3867.1,3865.7,0.8179]
[1754595946583,3.2078,3867.6,3865.8,22.0128]
[1754595946786,4.65382855,3868.7,3867.5,0.3811]
[1754595946981,41.2245,3868.6,3868.2,2.77933793]
[1754595947281,3.2078,3868.3,3867.5,0.3811]
[1754595947585,0.4311,3867.9,3867.5,3.2078]
[1754595947786,0.4311,3868.1,3867.5,3.2078]
[1754595947982,0.8556,3868.2,3867.6,3.2078]
[1754595948181,0.8556,3868.8,3868.0,3.2078]
[1754595948392,0.00505724,3869.0,3867.9,3.2078]
[1754595948588,0.4311,3868.8,3867.7,19.037]
[1754595948780,0.432,3867.6,3867.0,3.2078]
[1754595948986,0.432,3867.6,3866.8,19.354]
[1754595948987,0.4311,3868.5,3867.5,0.51699]
[1754595949289,0.8565,3868.6,3866.4,37.286]
[1754595949290,0.4311,3868.6,3868.4,3.2078]
[1754595949483,40.8,3868.7,3868.5,19.384]
[1754595949683,41.2311,3868.7,3868.5,19.384]
[1754595949878,1.2876,3868.5,3868.4,3.2078]
[1754595950087,1.2876,3868.5,3866.4,37.286]
[1754595950088,0.432,3868.5,3867.2,22.5748]
[1754595950282,0.4311,3868.5,3867.6,3.2078]
[1754595950478,0.4311,3868.0,3867.2,22.6018]
[1754595950679,40.8,3867.9,3867.2,22.6018]
[1754595950980,0.4245,3867.5,3867.2,3.2078]
[1754595951190,0.432,3867.4,3867.2,3.2078]
[1754595951390,0.8556,3867.3,3867.2,3.2078]
[1754595951590,1.2876,3867.3,3867.2,3.2078]
[1754595951792,1.2876,3867.3,3866.5,3.72492]
[1754595951994,1.2876,3867.3,3866.5,22.6008]
[1754595952287,1.29209,3868.7,3865.3,0.20500192]
[1754595952288,1.2876,3867.1,3866.9,3.2078]
[1754595952488,1.2876,3866.8,3866.6,3.2078]
[1754595952795,0.8556,3867.3,3866.8,0.51709]
[1754595953094,1.2876,3867.3,3867.2,3.2078]
[1754595953594,42.0876,3867.3,3867.2,3.2078]
[1754595955090,41.6556,3867.3,3867.2,3.2078]
[1754595955688,1.2876,3868.2,3867.2,3.6306]
[1754595955893,0.5169,3868.2,3867.6,3.2078]
[1754595956101,0.432,3867.8,3867.6,3.2078]
[1754595956396,1.2876,3867.7,3867.6,3.2078]
[1754595956799,0.8556,3867.7,3867.6,3.2078]
[1754595956995,41.6556,3867.7,3867.6,3.2078]
[1754595958090,42.0876,3867.7,3867.6,3.2078]
[1754595959988,42.0876,3867.7,3867.6,3.72478]
[1754595960303,40.8,3867.7,3867.6,3.6306]
[1754595960498,40.8,3867.7,3867.6,22.9466]
[1754595960697,0.8556,3868.2,3868.1,0.51691]
[1754595960895,0.4245,3868.6,3868.1,3.6306]
[1754595961099,1.33680627,3869.6,3868.5,3.2078]
[1754595961394,1.33680627,3869.6,3868.2,3.2078]
[1754595961395,0.51689,3868.3,3868.2,3.2078]
[1754595961604,0.4311,3868.0,3867.8,3.2078]
[1754595961792,0.8631,3867.9,3867.8,2.7719]
[1754595962103,1.2876,3867.9,3867.8,2.7719]
[1754595962296,42.0876,3867.9,3867.8,2.7719]
[1754595962595,42.0876,3867.9,3867.6,3.2078]
[1754595962796,40.8,3867.9,3867.8,3.2078]
[1754595962996,0.51695,3867.8,3867.7,2.336]
[1754595963193,40.8,3867.9,3867.7,2.336]
[1754595963397,40.8,3867.9,3867.7,2.85296]
[1754595963598,0.51695,3867.8,3867.7,2.336]
[1754595963797,41.31694,3867.9,3867.7,2.336]
[1754595964590,0.51701,3867.4,3867.2,3.2078]
[1754595965097,0.02791717,3867.3,3867.2,3.2078]
[1754595965401,40.82791717,3867.3,3867.2,4.0003]
[1754595965598,1.29211,3868.7,3867.7,0.51696]
[1754595965803,0.51693,3868.0,3867.8,3.2078]
[1754595966005,0.51693,3868.0,3867.8,3.6052]
[1754595966192,0.51692,3868.1,3867.8,3.6052]
[1754595966395,0.51692,3868.1,3867.8,3.2078]
[1754595966593,0.517,3867.5,3867.4,3.2078]
[1754595966804,0.5171,3866.7,3866.6,3.2078]
[1754595967299,41.3171,3866.7,3866.6,3.2078]
[1754595967502,40.8,3866.7,3866.6,3.2078]
[1754595967802,40.8,3866.7,3866.6,4.0003]
[1754595968002,40.8,3866.7,3866.6,4.4231]
[1754595968804,40.8,3866.7,3866.6,3.2078]
[1754595969202,40.8,3866.7,3866.2,3.2078]
[1754595969599,0.51715,3866.4,3866.2,3.2078]
[1754595969806,1.29286,3866.4,3865.7,3.2078]
[1754595970004,0.5172,3866.0,3865.7,3.2078]
[1754595970206,0.5172,3866.0,3865.8,0.3974]
[1754595970701,0.51714,3866.4,3865.7,3.2078]
[1754595970907,0.5172,3866.0,3865.7,4.12243]
[1754595971100,0.51718,3866.1,3865.7,4.12243]
[1754595971296,0.51719,3866.0,3865.7,4.12242]
[1754595971497,44.0078,3866.7,3865.7,3.2078]
[1754595971704,0.51711,3866.6,3866.5,3.2078]
[1754595971911,40.8,3866.7,3866.6,0.8179]
[1754595972106,1.29211,3868.7,3867.0,1.29262]
[1754595972300,0.51693,3868.0,3867.7,1.2153]
[1754595972502,44.0078,3867.9,3867.2,3.2078]
[1754595972702,40.8,3867.9,3867.5,0.51698]
[1754595972901,41.31694,3867.9,3867.6,3.2078]
[1754595973106,40.8,3867.9,3867.8,1.0406]
[1754595973312,40.8,3867.9,3867.8,1.4686]
[1754595973509,41.31694,3867.9,3867.5,3.2078]
[1754595973710,40.8,3867.9,3867.8,1.4686]
[1754595974905,0.74035,3867.8,3867.5,3.7143]
[1754595975111,40.8,3867.9,3867.5,3.2078]
[1754595975112,0.2234,3867.6,3867.5,3.2078]
[1754595975405,0.51699,3867.5,3867.2,0.51703]
[1754595975708,1.51599,3867.2,3866.5,0.5065]
[1754595975907,0.51714,3866.4,3866.3,3.2078]
[1754595976204,0.51714,3866.4,3865.0,1.80555105]
[1754595976205,0.51717,3866.2,3866.0,0.5065]
[1754595976412,3.2078,3866.5,3865.7,0.5065]
[1754595976413,0.2234,3866.3,3865.7,0.5065]